bitfinex/quotes_BTCUSD_20220731
["timestamp","ask_amount","ask_price","bid_price","bid_amount"]
[1659257477430,0.42541646,23595.0,23592.0,0.02863261]
[1659257477676,0.83267379,23595.0,23592.0,0.02863261]
[1659257477906,0.19793052,23594.0,23590.0,0.211806]
[1659257478131,0.01279852,23594.0,23590.0,0.211806]
[1659257478363,0.01279852,23594.0,23591.0,0.02863261]
[1659257478606,0.01279852,23594.0,23592.0,0.055]
[1659257478845,0.83267379,23595.0,23592.0,0.055]
[1659257479308,0.83267379,23595.0,23593.0,0.305012]
[1659257479526,0.185132,23594.0,23592.0,0.055]
[1659257479776,0.83267379,23595.0,23590.0,0.211806]
[1659257480473,0.83267379,23595.0,23591.0,0.305012]
[1659257480687,0.185132,23594.0,23592.0,0.02863261]
[1659257480923,0.00675797,23594.0,23590.0,0.266806]
[1659257481176,0.83267379,23595.0,23590.0,0.266806]
[1659257481409,0.83267379,23595.0,23591.0,0.305012]
[1659257481624,0.185132,23594.0,23590.0,0.266806]
[1659257481850,0.83267379,23595.0,23591.0,0.02863261]
[1659257482065,0.83267379,23595.0,23590.0,0.211806]
[1659257482526,0.185132,23594.0,23590.0,0.273806]
[1659257482740,0.83267379,23595.0,23590.0,0.273806]
[1659257482981,0.185132,23594.0,23590.0,0.273806]
[1659257483198,0.01279852,23593.0,23590.0,0.273806]
[1659257483410,0.83267379,23595.0,23590.0,0.273806]
[1659257483677,0.83267379,23595.0,23591.0,0.305012]
[1659257483912,0.83267379,23595.0,23590.0,0.211806]
[1659257483913,0.185132,23594.0,23590.0,0.211806]
[1659257484147,0.83267379,23595.0,23590.0,0.211806]
[1659257484380,0.185132,23594.0,23590.0,0.211806]
[1659257484609,0.88260492,23595.0,23591.0,0.055]
[1659257484828,0.185132,23594.0,23591.0,0.055]
[1659257485077,0.185132,23594.0,23592.0,0.02863261]
[1659257485306,0.88260492,23595.0,23591.0,0.055]
[1659257485528,0.185132,23594.0,23591.0,0.055]
[1659257485756,0.185132,23594.0,23590.0,0.211806]
[1659257485757,0.01279852,23594.0,23590.0,0.211806]
[1659257486250,0.42005585,23594.0,23591.0,0.305012]
[1659257486477,0.42005585,23594.0,23590.0,0.062]
[1659257486478,0.59238933,23593.0,23590.0,0.062]
[1659257486696,0.40725733,23593.0,23590.0,0.062]
[1659257486941,0.40725733,23593.0,23590.0,0.09063261]
[1659257487622,0.01279852,23594.0,23590.0,0.09063261]
[1659257487851,0.47534759,23595.0,23590.0,0.29043761]
[1659257488543,0.47534759,23595.0,23590.0,0.36843761]
[1659257488834,0.47534759,23595.0,23594.0,0.05]
[1659257489072,0.66047959,23595.0,23594.0,0.02863261]
[1659257489313,0.66047959,23595.0,23591.0,0.40725733]
[1659257489540,0.66047959,23595.0,23590.0,0.334805]
[1659257489541,0.50565063,23595.0,23590.0,0.123]
[1659257489766,0.91290796,23595.0,23588.0,0.3756]
[1659257489998,0.91290796,23595.0,23588.0,0.78285733]
[1659257490464,0.91290796,23595.0,23588.0,0.85485733]
[1659257491152,0.91290796,23595.0,23589.0,0.3]
[1659257491416,0.185132,23594.0,23589.0,0.3]
[1659257491638,0.91290796,23595.0,23590.0,0.305012]
[1659257491863,0.185132,23594.0,23588.0,0.40725733]
[1659257492085,0.91290796,23595.0,23588.0,0.40725733]
[1659257492314,0.185132,23594.0,23588.0,0.40725733]
[1659257492619,0.5674915,23595.0,23588.0,0.40725733]
[1659257492769,0.43304803,23592.0,23588.0,0.40725733]
[1659257493001,0.01279852,23591.0,23588.0,0.40725733]
[1659257493222,0.01279852,23591.0,23587.0,0.97335733]
[1659257493683,0.01279852,23591.0,23587.0,0.002]
[1659257493915,0.185132,23590.0,23587.0,0.002]
[1659257494148,0.41873917,23589.0,23587.0,0.002]
[1659257494382,0.9689783,23588.0,23587.0,0.002]
[1659257494850,0.3189783,23588.0,23587.0,0.002]
[1659257495305,0.3139783,23588.0,23587.0,0.002]
[1659257496404,0.3139783,23588.0,23587.0,0.081]
[1659257497842,0.3139783,23588.0,23587.0,0.002]
[1659257498062,0.22949938,23588.0,23587.0,0.002]
[1659257498538,0.46320106,23583.0,23582.0,0.0011]
[1659257498769,0.40725733,23583.0,23582.0,0.0011]
[1659257499059,0.62925933,23583.0,23582.0,0.0011]
[1659257499293,1.08105954,23583.0,23582.0,0.0011]
[1659257499758,0.59238933,23583.0,23582.0,0.0011]
[1659257500486,0.265132,23583.0,23582.0,0.0011]
[1659257500693,0.08,23583.0,23582.0,0.0011]
[1659257501829,0.01279852,23584.0,23582.0,0.0011]
[1659257502499,0.09279852,23584.0,23582.0,0.0011]
[1659257502958,0.08,23584.0,23582.0,0.02981592]
[1659257503400,0.08,23584.0,23582.0,0.0011]
[1659257503841,0.185132,23583.0,23582.0,0.0011]
[1659257504121,0.40725733,23586.0,23582.0,0.0011]
[1659257504366,0.185132,23585.0,23582.0,0.0011]
[1659257504594,0.08,23583.0,23582.0,0.0011]
[1659257504808,0.265132,23583.0,23582.0,0.0011]
[1659257505247,0.265132,23583.0,23582.0,0.02973261]
[1659257505248,0.08,23583.0,23582.0,0.02973261]
[1659257505702,0.265132,23583.0,23582.0,0.02973261]
[1659257506168,0.265132,23583.0,23582.0,0.0011]
[1659257506384,0.079,23583.0,23582.0,0.0011]
[1659257507295,0.264132,23583.0,23582.0,0.0011]
[1659257507739,0.185132,23583.0,23582.0,0.0011]
[1659257508054,0.19793052,23583.0,23582.0,0.0011]
[1659257508509,0.27693052,23583.0,23582.0,0.0011]
[1659257508734,0.68418785,23583.0,23582.0,0.0011]
[1659257509858,0.59842988,23583.0,23582.0,0.0011]
[1659257510083,0.60518785,23583.0,23582.0,0.0011]
[1659257510545,0.67138933,23583.0,23582.0,0.0011]
[1659257511944,0.264132,23583.0,23582.0,0.0011]
[1659257512169,0.5952,23587.0,23582.0,0.0011]
[1659257512410,0.079,23583.0,23582.0,0.0011]
[1659257513084,0.264132,23583.0,23582.0,0.0011]
[1659257513749,0.185132,23583.0,23582.0,0.0011]
[1659257513981,0.19793052,23583.0,23582.0,0.0011]
[1659257514201,0.01279852,23583.0,23582.0,0.0011]
[1659257514450,0.079,23583.0,23582.0,0.0011]
[1659257514683,0.264132,23583.0,23582.0,0.0011]
[1659257514907,0.079,23583.0,23582.0,0.0011]
[1659257515626,0.264132,23583.0,23582.0,0.00261596]
[1659257515836,0.185132,23583.0,23582.0,0.0011]
[1659257516301,0.185132,23583.0,23582.0,0.02973261]
[1659257516516,0.264132,23583.0,23582.0,0.02973261]
[1659257516753,0.264132,23583.0,23582.0,0.0011]
[1659257517202,0.88892855,23583.0,23582.0,0.0011]
[1659257518397,0.70379655,23583.0,23582.0,0.0011]
[1659257518639,0.70379655,23583.0,23582.0,0.02973261]
[1659257518866,0.70379655,23583.0,23582.0,0.96178994]
[1659257519100,0.20389655,23583.0,23582.0,1.31131542]
[1659257519396,0.16039924,23583.0,23582.0,1.6113912]
[1659257519639,0.16039924,23583.0,23582.0,1.2795212]
[1659257519870,0.16039924,23583.0,23582.0,1.22187772]
[1659257520327,0.08139924,23583.0,23582.0,1.2795212]
[1659257520569,0.08139924,23583.0,23582.0,1.28887772]
[1659257521230,0.07715564,23583.0,23582.0,1.28887772]
[1659257521954,0.07715564,23583.0,23582.0,1.26687772]
[1659257522198,0.07715564,23583.0,23582.0,0.96687772]
[1659257522431,0.07715564,23583.0,23582.0,0.98787772]
[1659257522667,0.07715564,23583.0,23582.0,0.94287772]
[1659257523595,0.07715564,23583.0,23582.0,0.98787772]
[1659257523821,0.07715564,23583.0,23582.0,1.28787772]
[1659257524268,0.07715564,23583.0,23582.0,1.26687772]
[1659257524520,0.07715564,23583.0,23582.0,1.28787772]
[1659257525931,0.07715564,23583.0,23582.0,1.22187772]
[1659257526389,0.07715564,23583.0,23582.0,1.25487772]
[1659257527315,0.04912184,23583.0,23582.0,1.25487772]
[1659257527780,0.04912184,23583.0,23582.0,1.22187772]
[1659257528465,0.04912184,23583.0,23582.0,1.29787772]
[1659257529432,0.393,23593.0,23583.0,0.05]
[1659257529682,0.40725733,23592.0,23584.0,0.58755733]
[1659257529911,0.185132,23591.0,23585.0,0.70725733]
[1659257530133,0.393,23593.0,23586.0,0.40725733]
[1659257530134,0.80025733,23593.0,23586.0,0.40725733]
[1659257530373,0.185132,23592.0,23586.0,0.40725733]
[1659257530606,0.08,23592.0,23586.0,0.40725733]
[1659257530838,0.185132,23591.0,23586.0,0.40725733]
[1659257531989,0.40725733,23593.0,23586.0,0.40725733]
[1659257532222,0.40725733,23591.0,23585.0,0.5644]
[1659257532451,0.48725733,23591.0,23585.0,0.5644]
[1659257532663,0.185132,23590.0,23585.0,0.5644]
[1659257532886,0.48725733,23591.0,23585.0,0.5644]
[1659257533573,0.185132,23590.0,23585.0,0.5644]
[1659257533812,0.5708,23594.0,23586.0,0.70725733]
[1659257533813,0.60265,23594.0,23586.0,0.70725733]
[1659257534042,0.59238933,23593.0,23586.0,0.70725733]
[1659257534286,0.40725733,23593.0,23586.0,0.70725733]
[1659257534504,0.185132,23592.0,23586.0,0.70725733]
[1659257534725,0.40725733,23593.0,23586.0,0.70725733]
[1659257534968,0.185132,23592.0,23586.0,0.70725733]
[1659257535200,0.40725733,23593.0,23586.0,0.40725733]
[1659257535429,0.185132,23592.0,23586.0,0.40725733]
[1659257535652,0.40725733,23593.0,23586.0,0.40725733]
[1659257535891,0.185132,23592.0,23586.0,0.40725733]
[1659257536094,0.40725733,23593.0,23586.0,0.40725733]
[1659257536325,0.185132,23592.0,23586.0,0.40725733]
[1659257536550,0.48725733,23593.0,23587.0,0.3]
[1659257536772,0.185132,23592.0,23586.0,0.40725733]
[1659257537530,0.48725733,23593.0,23586.0,0.40725733]
[1659257537757,0.185132,23592.0,23586.0,0.40725733]
[1659257537987,0.40725733,23593.0,23586.0,0.40725733]
[1659257538205,0.185132,23592.0,23586.0,0.40725733]
[1659257538423,0.08,23592.0,23586.0,0.40725733]
[1659257538672,0.185132,23591.0,23586.0,0.40725733]
[1659257540327,0.005,23593.0,23586.0,0.40725733]
[1659257540580,0.08,23591.0,23590.0,0.1298]
[1659257540812,0.08,23591.0,23590.0,0.6640657]
[1659257541038,0.08,23591.0,23590.0,0.9640657]
[1659257541505,0.08023417,23595.0,23590.0,0.9640657]
[1659257541506,0.08023417,23595.0,23594.0,1.15]
[1659257541732,0.08023417,23595.0,23594.0,1.35273269]
[1659257541955,0.08023417,23595.0,23594.0,1.17582069]
[1659257542180,0.08023417,23595.0,23594.0,1.12582069]
[1659257542405,0.08023417,23595.0,23594.0,0.42256336]
[1659257542676,0.08023417,23595.0,23594.0,1.22982069]
[1659257542890,0.08023417,23595.0,23594.0,1.17582069]
[1659257544484,0.08023417,23595.0,23594.0,1.23482069]
[1659257545869,0.08023417,23595.0,23594.0,1.17582069]
[1659257546093,0.08023417,23595.0,23594.0,1.83847617]
[1659257546596,0.08023417,23595.0,23594.0,1.59247617]
[1659257547739,0.08023417,23595.0,23594.0,1.53847617]
[1659257548446,0.08023417,23595.0,23594.0,1.59747617]
[1659257549856,0.08023417,23595.0,23594.0,1.53847617]
[1659257550504,0.08023417,23595.0,23594.0,1.60347617]
[1659257550743,5.23e-06,23595.0,23594.0,1.60347617]
[1659257551200,5.23e-06,23595.0,23594.0,1.19083269]
[1659257551877,0.06631263,23604.0,23594.0,1.96647617]
[1659257552109,0.06631263,23604.0,23603.0,0.1731]
[1659257552326,0.06631263,23604.0,23603.0,1.12566594]
[1659257552556,0.06631263,23604.0,23603.0,1.52566594]
[1659257554508,0.06631263,23604.0,23603.0,1.58266594]
[1659257554974,0.06631263,23604.0,23603.0,1.58254798]
[1659257555680,0.06631263,23604.0,23603.0,1.45903333]
[1659257555923,0.06631263,23604.0,23603.0,0.56398994]
[1659257556375,0.06631263,23604.0,23603.0,0.62614152]
[1659257556882,0.04361263,23604.0,23603.0,0.21888419]
[1659257557114,0.04361263,23604.0,23603.0,0.07497836]
[1659257557341,0.04361263,23604.0,23603.0,0.062]
[1659257557800,0.04361263,23604.0,23599.0,0.211704]
[1659257558027,0.04361263,23604.0,23600.0,0.40725733]
[1659257558308,0.04361263,23604.0,23601.0,0.0287842]
[1659257558544,0.04361263,23604.0,23601.0,0.43604153]
[1659257558773,0.04361263,23604.0,23601.0,0.48604153]
[1659257559487,0.04361263,23604.0,23602.0,0.70725733]
[1659257559719,0.04361263,23604.0,23603.0,0.45725733]
[1659257559940,0.04361263,23604.0,23603.0,0.50725733]
[1659257560177,0.0503706,23604.0,23603.0,0.80725733]
[1659257560400,0.04361263,23604.0,23603.0,0.87825733]
[1659257561087,0.04361263,23604.0,23603.0,0.82825733]
[1659257561773,0.04361263,23604.0,23603.0,0.80725733]
[1659257562031,0.03091263,23604.0,23603.0,0.80725733]
[1659257562476,0.03091263,23604.0,23603.0,0.86625733]
[1659257563153,0.03091263,23604.0,23603.0,1.17126933]
[1659257563407,0.03091263,23604.0,23603.0,0.86625733]
[1659257563865,0.03091263,23604.0,23603.0,1.11226933]
[1659257564096,0.03091263,23604.0,23603.0,0.80725733]
[1659257564317,0.03091263,23604.0,23603.0,1.11226933]
[1659257564562,0.03091263,23604.0,23603.0,0.86825733]
[1659257564782,0.03091263,23604.0,23603.0,1.17326933]
[1659257565703,0.03091263,23604.0,23603.0,1.11226933]
[1659257566433,0.03091263,23604.0,23603.0,1.17026933]
[1659257566875,0.01821263,23604.0,23603.0,1.17026933]
[1659257567370,0.301,23611.0,23603.0,1.17026933]
[1659257567599,0.61938719,23612.0,23607.0,0.1281]
[1659257567830,0.00019885,23611.0,23608.0,0.40725733]
[1659257568078,0.00019885,23611.0,23609.0,0.63364461]
[1659257568297,0.00019885,23611.0,23610.0,0.40725733]
[1659257568542,0.01299737,23611.0,23608.0,0.046]
[1659257568770,0.01279852,23611.0,23608.0,0.45325733]
[1659257568977,0.01279852,23611.0,23608.0,0.046]
[1659257569429,0.03183,23612.0,23608.0,0.046]
[1659257569736,0.216962,23612.0,23608.0,0.046]
[1659257569971,0.03183,23612.0,23607.0,0.1281]
[1659257570188,0.216962,23612.0,23607.0,0.53535733]
[1659257570424,0.03183,23612.0,23608.0,0.043]
[1659257570653,0.01279852,23611.0,23608.0,0.043]
[1659257571575,0.03183,23610.0,23608.0,0.043]
[1659257571806,0.03183,23610.0,23604.0,0.1803]
[1659257572046,0.05100687,23609.0,23604.0,0.58755733]
[1659257572276,0.05100687,23609.0,23605.0,0.3]
[1659257572495,0.03183,23612.0,23606.0,0.02863261]
[1659257572728,0.216962,23612.0,23606.0,0.43588994]
[1659257572962,0.216962,23612.0,23607.0,0.40725733]
[1659257573202,0.62421933,23612.0,23606.0,0.07863261]
[1659257573426,0.43908733,23612.0,23605.0,0.3]
[1659257573763,0.185132,23611.0,23605.0,0.40725733]
[1659257573992,0.43908733,23612.0,23606.0,0.3]
[1659257574212,0.185132,23611.0,23605.0,0.40725733]
[1659257574450,0.03183,23610.0,23605.0,0.43125733]
[1659257574684,0.40725733,23612.0,23605.0,0.43125733]
[1659257574685,0.185132,23609.0,23605.0,0.43125733]
[1659257574956,0.03183,23611.0,23606.0,0.03029977]
[1659257575179,0.185132,23610.0,23606.0,0.03029977]
[1659257575408,0.43908733,23612.0,23606.0,0.03029977]
[1659257575641,0.89238933,23611.0,23605.0,0.024]
[1659257575885,0.005,23606.0,23600.0,0.3893]
[1659257576132,0.005,23606.0,23601.0,0.40725733]
[1659257576352,0.005,23606.0,23605.0,0.001]
[1659257576601,0.01779852,23606.0,23605.0,0.001]
[1659257578039,0.01779852,23606.0,23601.0,0.40725733]
[1659257578256,0.01779852,23606.0,23600.0,0.40725733]
[1659257578257,0.005,23604.0,23600.0,0.40725733]
[1659257578493,0.05,23609.0,23596.0,0.1]
[1659257578494,0.005,23597.0,23596.0,0.1]
[1659257578714,0.04945,23597.0,23593.0,0.211751]
[1659257578970,0.02142621,23597.0,23596.0,0.00012527]
[1659257579432,0.03422473,23597.0,23596.0,0.00012527]
[1659257579664,0.00675797,23597.0,23596.0,0.00012527]
[1659257579898,0.00675797,23597.0,23593.0,0.40725733]
[1659257579899,0.05100687,23601.0,23594.0,0.4303]
[1659257580148,1.02149733,23603.0,23596.0,0.53755733]
[1659257580149,0.98965733,23603.0,23596.0,0.53755733]
[1659257580379,0.185132,23602.0,23598.0,0.1281]
[1659257580621,0.5997,23604.0,23601.0,0.1281]
[1659257580860,0.61423,23607.0,23601.0,0.1281]
[1659257580861,0.185132,23603.0,23601.0,0.1281]
[1659257581093,0.61444053,23607.0,23601.0,0.53535733]
[1659257581481,0.185132,23606.0,23601.0,0.53535733]
[1659257581483,0.185132,23606.0,23601.0,0.54800081]
[1659257581672,0.58261053,23607.0,23601.0,0.53535733]
[1659257581884,0.185132,23606.0,23602.0,0.35]
[1659257582204,0.185132,23606.0,23602.0,0.3]
[1659257582413,0.185132,23606.0,23601.0,0.55035733]
[1659257582554,0.5554,23609.0,23605.0,0.1303]
[1659257582782,0.13051065,23613.0,23605.0,0.53755733]
[1659257582986,0.12563201,23610.0,23605.0,0.53755733]
[1659257583200,0.60979632,23611.0,23607.0,0.1281]
[1659257583411,0.00019632,23611.0,23609.0,0.1281]
[1659257583614,0.00019632,23611.0,23609.0,0.1781]
[1659257583823,0.07878065,23613.0,23610.0,0.40725733]
[1659257584466,0.07878065,23613.0,23611.0,0.03054292]
[1659257584675,0.07828065,23613.0,23611.0,0.43780025]
[1659257584878,0.09107917,23613.0,23609.0,0.1811]
[1659257585167,0.6239815,23613.0,23609.0,0.053]
[1659257585369,0.03183,23612.0,23609.0,0.053]
[1659257585580,0.03183,23612.0,23605.0,1.0062]
[1659257585790,0.5301665,23613.0,23606.0,0.40725733]
[1659257585999,0.125645,23612.0,23606.0,0.40725733]
[1659257586214,0.8301665,23613.0,23606.0,0.40725733]
[1659257586418,0.125645,23612.0,23606.0,0.48025733]
[1659257586640,0.8301665,23613.0,23608.0,0.1303]
[1659257586641,0.07828065,23613.0,23608.0,0.1303]
[1659257586841,0.07828065,23613.0,23610.0,0.1303]
[1659257587058,0.07828065,23613.0,23611.0,0.48780025]
[1659257587285,0.07828065,23613.0,23612.0,1.33755733]
[1659257587694,0.07828065,23613.0,23612.0,0.88755733]
[1659257588330,0.07828065,23613.0,23612.0,0.92855733]
[1659257588558,0.07828065,23613.0,23612.0,0.97855733]
[1659257588779,0.07828065,23613.0,23612.0,0.92855733]
[1659257589192,0.07828065,23613.0,23612.0,0.97855733]
[1659257589661,0.07828065,23613.0,23612.0,0.92855733]
[1659257589891,0.07828065,23613.0,23612.0,0.88755733]
[1659257590136,0.07828065,23613.0,23612.0,0.83755733]
[1659257590582,0.07828065,23613.0,23612.0,0.88555733]
[1659257591731,0.07828065,23613.0,23612.0,0.83755733]
[1659257592202,0.07828065,23613.0,23612.0,0.88755733]
[1659257592432,0.07828065,23613.0,23612.0,0.94055733]
[1659257592677,0.07828065,23613.0,23612.0,1.19548333]
[1659257592912,0.07828065,23613.0,23612.0,0.89055733]
[1659257593164,0.07828065,23613.0,23612.0,0.94055733]
[1659257593401,0.07828065,23613.0,23612.0,1.24548333]
[1659257594322,0.07828065,23613.0,23612.0,1.19248333]
[1659257594561,0.07828065,23613.0,23612.0,1.24548333]
[1659257595710,0.07828065,23613.0,23612.0,1.19248333]
[1659257596385,0.07828065,23613.0,23612.0,1.24548333]
[1659257597831,0.07828065,23613.0,23612.0,0.84248333]
[1659257598305,0.07828065,23613.0,23612.0,0.71218333]
[1659257598540,0.07828065,23613.0,23612.0,0.76518333]
[1659257599468,0.07828065,23613.0,23612.0,1.06518333]
[1659257599689,0.07828065,23613.0,23612.0,1.06218333]
[1659257600377,0.07828065,23613.0,23612.0,1.11518333]
[1659257601381,0.07828065,23613.0,23612.0,0.76518333]
[1659257601850,0.07828065,23613.0,23612.0,1.06218333]
[1659257602070,0.07828065,23613.0,23612.0,0.71218333]
[1659257602291,0.07828065,23613.0,23612.0,0.70725733]
[1659257602520,0.07828065,23613.0,23612.0,1.06518333]
[1659257602755,0.07828065,23613.0,23612.0,1.11518333]
[1659257603219,0.07828065,23613.0,23612.0,0.76518333]
[1659257603466,0.07828065,23613.0,23612.0,0.46025733]
[1659257603699,0.07828065,23613.0,23612.0,0.40725733]
[1659257604188,0.07828065,23613.0,23612.0,0.70725733]
[1659257604616,0.07828065,23613.0,23612.0,1.11518333]
[1659257605103,0.07828065,23613.0,23612.0,0.81025733]
[1659257605322,0.07828065,23613.0,23612.0,1.11518333]
[1659257605562,0.07799858,23613.0,23612.0,0.81025733]
[1659257606025,0.07799858,23613.0,23612.0,1.11518333]
[1659257606259,0.07799858,23613.0,23612.0,0.76518333]
[1659257606483,0.07799858,23613.0,23612.0,0.46025733]
[1659257606936,0.08475655,23613.0,23612.0,0.76518333]
[1659257607168,0.07799858,23613.0,23612.0,0.46025733]
[1659257607839,0.07799858,23613.0,23612.0,0.40725733]
[1659257608586,0.07799858,23613.0,23612.0,0.49080025]
[1659257608805,0.07799858,23613.0,23612.0,0.79572625]
[1659257609043,0.07799858,23613.0,23612.0,0.49080025]
[1659257609278,0.07799858,23613.0,23612.0,0.79572625]
[1659257609500,0.07799858,23613.0,23612.0,0.49080025]
[1659257609721,0.07799858,23613.0,23612.0,0.78780025]
[1659257609722,0.75743546,23613.0,23612.0,0.78780025]
[1659257609960,0.75743546,23613.0,23612.0,1.09272625]
[1659257610178,0.75743546,23613.0,23612.0,0.78780025]
[1659257610403,0.75743546,23613.0,23612.0,0.84080025]
[1659257610624,0.75743546,23613.0,23612.0,1.14572625]
[1659257610875,0.75743546,23613.0,23612.0,0.84080025]
[1659257611101,0.75743546,23613.0,23612.0,1.19572625]
[1659257611795,0.75743546,23613.0,23612.0,1.14272625]
[1659257612562,0.75743546,23613.0,23612.0,1.19572625]
[1659257612781,0.75743546,23613.0,23612.0,1.14572625]
[1659257613695,0.75743546,23613.0,23612.0,1.09272625]
[1659257614377,0.75743546,23613.0,23612.0,1.19572625]
[1659257615115,0.75743546,23613.0,23612.0,1.14572625]
[1659257615702,0.75743546,23613.0,23612.0,1.09272625]
[1659257615946,0.75743546,23613.0,23612.0,1.06218333]
[1659257616237,0.75743546,23613.0,23612.0,1.09232899]
[1659257616454,0.75743546,23613.0,23612.0,1.14532899]
[1659257616689,0.75743546,23613.0,23612.0,1.19532899]
[1659257617147,0.75743546,23613.0,23612.0,1.14532899]
[1659257617832,0.75743546,23613.0,23612.0,1.09232899]
[1659257618523,0.75743546,23613.0,23612.0,1.14532899]
[1659257619053,0.75743546,23613.0,23612.0,1.19532899]
[1659257619285,0.75743546,23613.0,23612.0,0.81025733]
[1659257619514,0.75743546,23613.0,23612.0,1.11518333]
[1659257621131,0.75743546,23613.0,23612.0,0.76518333]
[1659257621404,0.75743546,23613.0,23612.0,0.46025733]
[1659257621627,0.75743546,23613.0,23612.0,0.76025733]
[1659257621845,0.75743546,23613.0,23612.0,0.40725733]
[1659257622534,0.75743546,23613.0,23612.0,0.46325733]
[1659257622746,0.75743546,23613.0,23612.0,0.76818333]
[1659257623207,0.75743546,23613.0,23612.0,0.46325733]
[1659257623888,0.75743546,23613.0,23612.0,0.70725733]
[1659257624115,0.75743546,23613.0,23612.0,1.06218333]
[1659257624342,0.75743546,23613.0,23612.0,1.11218333]
[1659257624594,0.75743546,23613.0,23612.0,1.16818333]
[1659257624820,0.75743546,23613.0,23612.0,1.11818333]
[1659257625725,0.75743546,23613.0,23612.0,1.06218333]
[1659257626481,0.75743546,23613.0,23612.0,1.11818333]
[1659257626859,0.75736838,23613.0,23612.0,1.11818333]
[1659257627830,0.75736838,23613.0,23612.0,1.06218333]
[1659257628498,0.75736838,23613.0,23612.0,1.11818333]
[1659257628950,0.75736838,23613.0,23612.0,0.46516764]
[1659257629179,0.75736838,23613.0,23612.0,1.14872625]
[1659257629867,0.75736838,23613.0,23612.0,1.09272625]
[1659257630087,0.75736838,23613.0,23612.0,0.80044373]
[1659257630346,0.75736838,23613.0,23612.0,1.10536973]
[1659257630583,0.75736838,23613.0,23612.0,1.16136973]
[1659257631765,0.75736838,23613.0,23612.0,1.10536973]
[1659257632443,0.75736838,23613.0,23612.0,1.16136973]
[1659257633812,0.75736838,23613.0,23612.0,1.10536973]
[1659257634485,0.75736838,23613.0,23612.0,1.15536973]
[1659257634939,0.75736838,23613.0,23612.0,1.16136973]
[1659257636287,0.75736838,23613.0,23612.0,1.14872625]
[1659257636521,0.75736838,23613.0,23612.0,0.89980025]
[1659257636775,0.75736838,23613.0,23612.0,0.84380025]
[1659257636991,0.75736838,23613.0,23612.0,1.14872625]
[1659257638467,0.75736838,23613.0,23612.0,0.46325733]
[1659257639638,0.75736838,23613.0,23612.0,0.76325733]
[1659257639856,0.75736838,23613.0,23612.0,0.40725733]
[1659257640094,0.75736838,23613.0,23612.0,0.75725733]
[1659257640323,0.75736838,23613.0,23612.0,1.35401632]
[1659257640546,0.75736838,23613.0,23612.0,1.11818333]
[1659257641012,0.75736838,23613.0,23612.0,1.06818333]
[1659257641231,0.75736838,23613.0,23612.0,0.76818333]
[1659257641462,0.75736838,23613.0,23612.0,1.06818333]
[1659257641696,0.75736838,23613.0,23612.0,1.06218333]
[1659257642447,0.75736838,23613.0,23612.0,1.11818333]
[1659257642923,0.75736838,23613.0,23612.0,0.76818333]
[1659257643147,0.75736838,23613.0,23612.0,0.51325733]
[1659257643366,0.75736838,23613.0,23612.0,0.81325733]
[1659257643613,0.75736838,23613.0,23612.0,0.84188994]
[1659257643845,0.75736838,23613.0,23612.0,1.06318333]
[1659257644516,0.75736838,23613.0,23612.0,1.11918333]
[1659257644735,0.75736838,23613.0,23612.0,1.14781594]
[1659257645697,0.75736838,23613.0,23612.0,1.14181594]
[1659257645943,0.75736838,23613.0,23612.0,1.06318333]
[1659257646370,0.75736838,23613.0,23612.0,1.11918333]
[1659257647611,0.75736838,23613.0,23612.0,1.0632793]
[1659257647823,0.75727698,23613.0,23612.0,1.06284933]
[1659257648484,0.75727698,23613.0,23612.0,1.11884933]
[1659257648727,0.7700755,23613.0,23612.0,1.11884933]
[1659257648947,0.75727698,23613.0,23612.0,0.76874582]
[1659257649164,0.75727698,23613.0,23612.0,0.81830831]
[1659257649385,0.75727698,23613.0,23612.0,1.1178708]
[1659257649655,0.76331753,23613.0,23612.0,1.11699578]
[1659257649894,0.7700755,23613.0,23612.0,1.11655827]
[1659257650105,0.75727698,23613.0,23612.0,1.05968325]
[1659257650333,0.75727698,23613.0,23612.0,1.11524574]
[1659257650547,0.75727698,23613.0,23612.0,1.11480823]
[1659257650776,0.75727698,23613.0,23612.0,1.0678708]
[1659257651035,0.75727698,23613.0,23612.0,1.06743329]
[1659257651262,0.75727698,23613.0,23612.0,1.11699578]
[1659257651484,0.75727698,23613.0,23612.0,1.14528685]
[1659257651709,0.75727698,23613.0,23612.0,1.08884934]
[1659257651916,0.75727698,23613.0,23612.0,1.08841183]
[1659257652152,0.75727698,23613.0,23612.0,1.01099578]
[1659257652371,0.75727698,23613.0,23612.0,1.06655827]
[1659257652611,0.75727698,23613.0,23612.0,1.06612076]
[1659257652830,0.75727698,23613.0,23612.0,1.09397432]
[1659257653046,0.7700755,23613.0,23612.0,1.06480823]
[1659257653254,0.75727698,23613.0,23612.0,1.11437072]
[1659257653558,0.75727698,23613.0,23612.0,1.11393321]
[1659257653760,0.75727698,23613.0,23612.0,0.40344472]
[1659257654010,0.75727698,23613.0,23612.0,0.40300721]
[1659257654229,0.75727698,23613.0,23612.0,0.7025697]
[1659257654449,0.75727698,23613.0,23612.0,0.75813219]
[1659257654874,0.75727698,23613.0,23612.0,0.75689754]
[1659257655328,0.75727698,23613.0,23612.0,0.80689754]
[1659257655789,0.75727698,23613.0,23612.0,0.75089754]
[1659257655999,0.75727698,23613.0,23612.0,0.45089754]
[1659257656240,0.75727698,23613.0,23612.0,1.05582354]
[1659257656464,0.75727698,23613.0,23612.0,1.14201893]
[1659257656688,0.75727698,23613.0,23612.0,0.81182354]
[1659257656915,0.75727698,23613.0,23612.0,1.11182354]
[1659257657466,0.75727698,23613.0,23612.0,1.14045615]
[1659257657687,0.75727698,23613.0,23612.0,1.08445615]
[1659257658375,0.75727698,23613.0,23612.0,1.14045615]
[1659257658592,0.75727698,23613.0,23612.0,1.19045615]
[1659257658819,0.75727698,23613.0,23612.0,1.26945615]
[1659257659497,0.75727698,23613.0,23612.0,1.31953428]
[1659257659710,0.7700755,23613.0,23612.0,0.70582354]
[1659257659973,0.75727698,23613.0,23612.0,0.40089754]
[1659257660424,0.75727698,23613.0,23612.0,0.45697567]
[1659257660657,0.75727698,23613.0,23612.0,0.76190167]
[1659257661368,0.75727698,23613.0,23612.0,1.29110167]
[1659257661821,0.75727698,23613.0,23612.0,1.23510167]
[1659257662521,0.75727698,23613.0,23612.0,1.28610167]
[1659257663854,0.75727698,23613.0,23612.0,1.28602354]
[1659257664086,0.75727698,23613.0,23612.0,1.28586054]
[1659257665445,0.75727698,23613.0,23612.0,1.23602354]
[1659257665664,0.75727698,23613.0,23612.0,1.18502354]
[1659257666353,0.75727698,23613.0,23612.0,1.25502354]
[1659257666817,0.75727698,23613.0,23612.0,1.30521182]
[1659257667491,0.75727698,23613.0,23612.0,1.25521182]